fUSD/lending_fUSD_20240125
["ID","MTS","AMOUNT","RATE_DAILY","PERIOD"]
[312775974,1706207438758,-153.67,0.000432,4]
[312775976,1706207438768,-153.67,0.000432,4]
[312775978,1706207438778,-153.67,0.000432,4]
[312775980,1706207438787,-153.67,0.000432,4]
[312775982,1706207438796,-153.67,0.000432,4]
[312775984,1706207438805,-153.67,0.000432,4]
[312775986,1706207438815,-153.67,0.000432,4]
[312775988,1706207438824,-153.67,0.000432,4]
[312775990,1706207438834,-153.67,0.000432,4]
[312775992,1706207438843,-153.67,0.000432,4]
[312775994,1706207438852,-153.67,0.000432,4]
[312775996,1706207438862,-153.67,0.000432,4]
[312775998,1706207438872,-205.03,0.0004336,2]
[312776000,1706207438881,-250.0,0.00043667,111]
[312776002,1706207438890,-10000.0,0.00043859,34]
[312776004,1706207438899,-205.03,0.00044853,2]
[312776006,1706207438908,-250.0,0.00045149,120]
[312776008,1706207438918,-158.39,0.00045381,2]
[312776010,1706207438927,-1000.0,0.00045437,2]
[312776012,1706207438935,-158.39,0.00045854,2]
[312776014,1706207438945,-158.39,0.00046327,2]
[312776016,1706207438955,-205.03,0.00046347,2]
[312776018,1706207438964,-158.39,0.00046799,2]
[312776020,1706207438973,-158.39,0.00047272,2]
[312776022,1706207438983,-409.48282714,0.00047507,7]
[312776024,1706207438992,-158.39,0.00047745,2]
[312776026,1706207439001,-152.03766887,0.00048596,30]
[312776028,1706207439010,-153.67,0.000487,6]
[312776030,1706207439020,-153.67,0.000487,6]
[312776032,1706207439029,-153.67,0.000487,6]
[312776034,1706207439038,-153.67,0.000487,6]
[312776036,1706207439048,-153.67,0.000487,6]
[312776038,1706207439059,-153.67,0.000487,6]
[312776040,1706207439069,-153.67,0.000487,6]
[312776042,1706207439078,-153.67,0.000487,6]
[312776045,1706207439088,-153.67,0.000487,6]
[312776046,1706207439097,-153.67,0.000487,6]
[312776048,1706207439107,-153.67,0.000487,6]
[312776050,1706207439116,-153.67,0.000487,6]
[312776053,1706207439126,-153.67,0.000487,6]
[312776055,1706207439135,-152.03766887,0.00048711,30]
[312776057,1706207439145,-157.09567326,0.00048753,30]
[312776059,1706207439154,-155.0,0.00048813,30]
[312776060,1706207439162,-157.09567326,0.00049354,30]
[312776062,1706207439174,-835.0,0.0004939,2]
[312776064,1706207439182,-6914.07619049,0.00049442,2]
[312776233,1706207440875,-1765.54480617,0.00049442,2]
[312776311,1706207441643,-1816.71920926,0.00049442,2]
[312776312,1706207441654,-1111.89941207,0.00049442,2]
[312776313,1706207441666,-1019.917125,0.00049442,2]
[312776314,1706207441724,-907.37789362,0.00049442,2]
[312776315,1706207441736,-1826.74076339,0.00049442,2]
[312776316,1706207441745,-3062.6673,0.00049526,2]
[312776317,1706207441754,-21281.26882446,0.00049542,21]
[312776318,1706207441766,-2081.2736311,0.00049542,21]
[312776319,1706207441778,-1141.80978165,0.00049542,21]
[312776328,1706207443332,-989.257,0.00049542,21]
[312776329,1706207443343,-20207.86009127,0.00049542,21]
[312776330,1706207443445,-2156.07414507,0.00049542,21]
[312776331,1706207443454,-14559.83579049,0.00049626,21]
[312776332,1706207443463,-180.0,0.00049698,2]
[312776333,1706207443474,-5464.74873174,0.00049714,20]
[312776334,1706207443483,-6914.99657889,0.00049759,20]
[312776335,1706207443493,-174.65593166,0.000499,11]
[312776336,1706207443503,-2800.86461245,0.0005,10]
[312776337,1706207443512,-26892.80733379,0.0005,4]
[312776338,1706207443522,-840.24153146,0.0005,4]
[312776339,1706207443531,-1000.0,0.00050486,2]
[312776340,1706207443540,-207.0,0.00050704,20]
[312776341,1706207443549,-157.09567326,0.00050789,60]
[312776342,1706207443558,-157.09567326,0.00050813,60]
[312776343,1706207443567,-161.56,0.00051196,120]
[312776344,1706207443576,-2089.10649731,0.00052,2]
[312776345,1706207443585,-1005.92,0.00052118,2]
[312776346,1706207443594,-157.09567326,0.00052521,60]
[312776347,1706207443602,-431.11,0.00052806,2]
[312776348,1706207443612,-1080.25877403,0.00053096,2]
[312776350,1706207443621,-354.13439621,0.00053424,120]
[312776351,1706207443631,-156.72521791,0.00053616,60]
[312776352,1706207443640,-1000.0,0.00053686,45]
[312776353,1706207443652,-1000.0,0.00053713,45]
[312776354,1706207443662,-1000.0,0.00053731,45]
[312776355,1706207443672,-174.65593166,0.00053733,14]
[312776356,1706207443682,-269.0,0.0005399,2]
[312776357,1706207443692,-5000.0,0.00054,2]
[312776358,1706207443702,-628.0,0.00054,30]
[312776359,1706207443712,-153.67,0.000542,7]
[312776360,1706207443722,-153.67,0.000542,7]
[312776361,1706207443731,-153.67,0.000542,7]
[312776362,1706207443741,-153.67,0.000542,7]
[312776363,1706207443751,-153.67,0.000542,7]
[312776364,1706207443762,-153.67,0.000542,7]
[312776365,1706207443771,-153.67,0.000542,7]
[312776366,1706207443781,-153.67,0.000542,7]
[312776367,1706207443790,-153.67,0.000542,7]
[312776368,1706207443799,-153.67,0.000542,7]
[312776369,1706207443808,-153.67,0.000542,7]
[312776370,1706207443817,-153.67,0.000542,7]
[312776371,1706207443827,-153.67,0.000542,7]
[312776372,1706207443837,-2102.0,0.000547,117]
[312776373,1706207443846,-1114.94063241,0.00054772,5]
[312776374,1706207443856,-1189.15360449,0.00054772,5]
[312776375,1706207443865,-365.89359112,0.00054794,120]
[312776376,1706207443875,-500.0,0.00054794,120]
[312776377,1706207443884,-500.0,0.00054794,60]
[312776378,1706207443894,-500.0,0.00054794,120]
[312776379,1706207443903,-897.67,0.00054794,120]
[312776380,1706207443913,-500.0,0.00054794,120]
[312776381,1706207443922,-500.0,0.00054794,120]
[312776382,1706207443932,-698.11,0.00054794,120]
[312776383,1706207443941,-500.0,0.00054794,120]
[312776384,1706207443950,-500.0,0.00054794,2]
[312776385,1706207443960,-327.56134791,0.00054794,120]
[312776386,1706207443969,-500.0,0.00054794,120]
[312776387,1706207443979,-500.0,0.00054794,120]
[312776388,1706207443988,-500.0,0.00054794,120]
[312776389,1706207443998,-500.0,0.00054794,120]
[312776390,1706207444008,-500.0,0.00054794,120]
[312776391,1706207444017,-500.0,0.00054794,120]
[312776392,1706207444027,-500.0,0.00054794,120]
[312776393,1706207444036,-222.85745136,0.00054794,120]
[312776394,1706207444047,-500.0,0.00054794,120]
[312776395,1706207444057,-508.74,0.00054794,2]
[312776396,1706207444068,-500.0,0.00054794,120]
[312776397,1706207444078,-500.0,0.00054794,120]
[312776398,1706207444088,-500.0,0.00054794,120]
[312776399,1706207444098,-567.09244383,0.00054794,2]
[312776400,1706207444110,-500.0,0.00054794,120]
[312776401,1706207444118,-500.0,0.00054794,120]
[312776402,1706207444130,-500.0,0.00054794,120]
[312776403,1706207444139,-500.0,0.00054794,120]
[312776404,1706207444150,-500.0,0.00054794,120]
[312776405,1706207444159,-500.0,0.00054794,120]
[312776406,1706207444170,-500.0,0.00054794,120]
[312776407,1706207444180,-500.0,0.00054794,120]
[312776408,1706207444191,-512.18,0.00054794,120]
[312776409,1706207444200,-500.0,0.00054794,120]
[312776410,1706207444211,-500.0,0.00054794,120]
[312776411,1706207444221,-500.0,0.00054794,120]
[312776412,1706207444233,-525.52,0.00054794,120]
[312776413,1706207444245,-500.0,0.00054794,120]
[312776414,1706207444254,-500.0,0.00054794,120]
[312776415,1706207444264,-500.0,0.00054794,120]
[312776416,1706207444275,-500.0,0.00054794,120]
[312776417,1706207444285,-581.08,0.00054794,120]
[312776418,1706207444295,-500.0,0.00054794,120]
[312776419,1706207444306,-500.0,0.00054794,120]
[312776420,1706207444319,-500.0,0.00054794,120]
[312776421,1706207444330,-500.0,0.00054794,120]
[312776422,1706207444339,-500.0,0.00054794,120]
[312776423,1706207444349,-500.0,0.00054794,120]
[312776424,1706207444359,-509.94,0.00054794,120]
[312776425,1706207444369,-500.0,0.00054794,120]
[312776426,1706207444380,-500.0,0.00054794,120]
[312776427,1706207444391,-587.52916543,0.00054794,120]
[312776428,1706207444402,-500.0,0.00054794,120]
[312776429,1706207444413,-500.0,0.00054794,120]
[312776430,1706207444423,-379.92,0.00054798,120]
[312776431,1706207444433,-500.0,0.00054798,120]
[312776432,1706207444443,-500.0,0.00054798,120]
[312776433,1706207444453,-466.39732046,0.00054798,120]
[312776434,1706207444463,-500.0,0.00054798,120]
[312776435,1706207444473,-500.0,0.00054798,120]
[312776436,1706207444483,-1086.51,0.00054798,5]
[312776437,1706207444492,-1027.74,0.00054798,120]
[312776438,1706207444502,-500.0,0.00054798,120]
[312776439,1706207444513,-500.0,0.00054798,120]
[312776440,1706207444522,-500.0,0.00054798,120]
[312776441,1706207444532,-500.0,0.00054798,120]
[312776442,1706207444543,-500.0,0.00054798,120]
[312776443,1706207444552,-500.0,0.00054799,120]
[312776444,1706207444562,-500.0,0.00054799,120]
[312776445,1706207444572,-500.0,0.00054799,120]
[312776446,1706207444582,-500.0,0.00054799,120]
[312776447,1706207444591,-500.0,0.00054799,120]
[312776448,1706207444601,-500.0,0.00054799,120]
[312776449,1706207444610,-500.0,0.00054799,120]
[312776450,1706207444621,-500.0,0.00054799,120]
[312776451,1706207444632,-500.0,0.00054799,2]
[312776452,1706207444641,-600.0,0.00054799,120]
[312776453,1706207444651,-500.0,0.00054799,120]
[312776454,1706207444660,-500.0,0.00054799,120]
[312776455,1706207444670,-500.0,0.00054799,120]
[312776456,1706207444681,-500.0,0.00054799,7]
[312776457,1706207444692,-500.0,0.00054799,120]
[312776458,1706207444701,-500.0,0.00054799,120]
[312776459,1706207444710,-500.0,0.00054799,120]
[312776460,1706207444721,-500.0,0.00054799,120]
[312776461,1706207444733,-150.0,0.00054799,120]
[312776462,1706207444742,-414.79202035,0.00054799,120]
[312776463,1706207444752,-587.23919886,0.00054799,120]
[312776464,1706207444762,-500.0,0.00054799,120]
[312776465,1706207444771,-500.0,0.00054799,120]
[312776466,1706207444780,-500.0,0.00054799,120]
[312776467,1706207444792,-500.0,0.00054799,120]
[312776468,1706207444802,-500.0,0.00054799,120]
[312776469,1706207444813,-500.0,0.00054799,120]
[312776470,1706207444822,-500.0,0.00054799,120]
[312776471,1706207444832,-500.0,0.00054799,120]
[312776472,1706207444841,-500.0,0.00054799,120]
[312776473,1706207444850,-504.18673739,0.00054799,120]
[312776474,1706207444860,-500.0,0.00054799,120]
[312776475,1706207444869,-500.0,0.00054799,120]
[312776476,1706207444879,-500.0,0.00054799,120]
[312776477,1706207444889,-500.0,0.00054799,120]
[312776478,1706207444898,-500.0,0.00054799,120]
[312776479,1706207444907,-500.0,0.00054799,120]
[312776480,1706207444917,-762.08,0.00054799,5]
[312776481,1706207444926,-500.0,0.00054799,120]
[312776482,1706207444935,-500.0,0.00054799,120]
[312776483,1706207444945,-500.0,0.00054799,120]
[312776484,1706207444954,-500.0,0.00054799,120]
[312776485,1706207444963,-500.0,0.00054799,7]
[312776486,1706207444972,-500.0,0.00054799,120]
[312776487,1706207444982,-500.0,0.00054799,120]
[312776488,1706207444991,-500.0,0.00054799,120]
[312776489,1706207445000,-500.0,0.00054799,120]
[312776490,1706207445009,-1312.18138972,0.000548,30]
[312776491,1706207445018,-4000.0,0.000548,120]
[312776492,1706207445028,-3000.0,0.000548,30]
[312776493,1706207445037,-500.0,0.000548,30]
[312776494,1706207445046,-252.77417519,0.00055,4]
[312776495,1706207445055,-6937.1612451,0.00055,56]
[312776496,1706207445064,-250.0,0.00055,120]
[312776497,1706207445073,-954.0,0.0005529,2]
[312776498,1706207445082,-154.35,0.00055318,2]
[312776499,1706207445091,-6583.0127909,0.00055329,2]
[312776500,1706207445100,-300.76362,0.00055331,10]
[312776501,1706207445109,-150.50442,0.00055331,10]
[312776502,1706207445118,-152.70971941,0.00055332,19]
[312776503,1706207445128,-4424.12405405,0.00055332,15]
[312776504,1706207445137,-8848.2481081,0.00055337,15]
[312776505,1706207445146,-9812.76354561,0.0005534,2]
[312776506,1706207445155,-500.0,0.0005534,120]
[312776507,1706207445164,-897.67,0.00055342,120]
[312776508,1706207445173,-500.0,0.00055342,120]
[312776509,1706207445182,-500.0,0.00055342,120]
[312776510,1706207445191,-698.11,0.00055342,120]
[312776511,1706207445202,-500.0,0.00055342,120]
[312776512,1706207445211,-500.0,0.00055342,2]
[312776513,1706207445220,-500.0,0.00055342,120]
[312776514,1706207445234,-424.10939602,0.00055342,120]
[312776515,1706207445243,-500.0,0.00055342,120]
[312776516,1706207445252,-500.0,0.00055342,120]
[312776517,1706207445261,-500.0,0.00055342,120]
[312776518,1706207445271,-500.0,0.00055342,120]
[312776519,1706207445280,-508.74,0.00055342,2]
[312776520,1706207445289,-500.0,0.00055342,120]
[312776521,1706207445298,-500.0,0.00055342,120]
[312776522,1706207445307,-500.0,0.00055342,120]
[312776523,1706207445317,-559.35216088,0.00055342,120]
[312776524,1706207445327,-500.0,0.00055342,120]
[312776525,1706207445336,-500.0,0.00055342,120]
[312776526,1706207445345,-500.0,0.00055342,120]
[312776527,1706207445355,-500.0,0.00055342,120]
[312776528,1706207445364,-500.0,0.00055342,120]
[312776529,1706207445373,-525.52,0.00055342,120]
[312776530,1706207445382,-500.0,0.00055342,120]
[312776531,1706207445391,-500.0,0.00055342,120]
[312776532,1706207445400,-500.0,0.00055342,120]
[312776533,1706207445409,-581.08,0.00055342,120]
[312776534,1706207445418,-500.0,0.00055342,120]
[312776535,1706207445427,-500.0,0.00055342,120]
[312776536,1706207445436,-500.0,0.00055342,120]
[312776537,1706207445445,-592.76283393,0.00055342,120]
[312776538,1706207445456,-500.0,0.00055342,120]
[312776539,1706207445466,-331.82,0.00055342,120]
[312776540,1706207445475,-500.0,0.00055342,120]
[312776541,1706207445484,-500.0,0.00055342,120]
[312776542,1706207445493,-500.0,0.00055346,120]
[312776543,1706207445502,-500.0,0.00055346,120]
[312776544,1706207445511,-500.0,0.00055346,120]
[312776545,1706207445520,-1086.51,0.00055346,5]
[312776546,1706207445530,-1027.74,0.00055346,120]
[312776547,1706207445539,-500.0,0.00055346,120]
[312776548,1706207445548,-500.0,0.00055346,120]
[312776549,1706207445690,-500.0,0.00055346,120]
[312776550,1706207445705,-481.76,0.00055346,120]
[312776551,1706207445715,-500.0,0.00055346,120]
[312776552,1706207445725,-248.21,0.00055347,120]
[312776553,1706207445735,-480.80739743,0.00055347,120]
[312776554,1706207445745,-500.0,0.00055347,120]
[312776555,1706207445755,-500.0,0.00055347,120]
[312776556,1706207445764,-601.78987577,0.00055347,120]
[312776557,1706207445773,-500.0,0.00055347,2]
[312776558,1706207445782,-500.0,0.00055347,120]
[312776559,1706207445791,-600.0,0.00055347,120]
[312776560,1706207445801,-500.0,0.00055347,120]
[312776561,1706207445810,-500.0,0.00055347,120]
[312776562,1706207445819,-500.0,0.00055347,7]
[312776563,1706207445828,-500.0,0.00055347,120]
[312776564,1706207445837,-500.0,0.00055347,120]
[312776565,1706207445846,-500.0,0.00055347,120]
[312776566,1706207445856,-500.0,0.00055347,120]
[312776567,1706207445865,-150.0,0.00055347,120]
[312776568,1706207445874,-500.0,0.00055347,120]
[312776569,1706207445882,-500.0,0.00055347,120]
[312776570,1706207445892,-500.0,0.00055347,120]
[312776571,1706207445901,-500.0,0.00055347,120]
[312776572,1706207445910,-500.0,0.00055347,120]
[312776573,1706207445919,-500.0,0.00055347,120]
[312776574,1706207445928,-500.0,0.00055347,120]
[312776575,1706207445937,-500.0,0.00055347,120]
[312776576,1706207445947,-500.0,0.00055347,120]
[312776577,1706207445957,-210.04,0.00055347,120]
[312776578,1706207445967,-500.0,0.00055347,120]
[312776579,1706207445977,-762.08,0.00055347,5]
[312776580,1706207445986,-500.0,0.00055347,120]
[312776581,1706207445995,-500.0,0.00055347,120]
[312776582,1706207446004,-500.0,0.00055347,120]
[312776583,1706207446013,-500.0,0.00055347,7]
[312776584,1706207446023,-500.0,0.00055347,120]
[312776585,1706207446032,-192.94,0.00055347,120]
[312776586,1706207446041,-500.0,0.00055347,120]
[312776588,1706207446050,-500.0,0.00055347,120]
[312776590,1706207446060,-157.09567326,0.00055528,120]
[312776592,1706207446069,-1000.0,0.00055534,120]
[312776594,1706207446078,-1293.33524656,0.0005569,27]
[312776596,1706207446087,-35392.9924324,0.0005578,15]
[312776597,1706207446097,-4424.12405405,0.00055785,15]
[312776598,1706207446106,-55555.0,0.0005579,5]
[312776599,1706207446117,-8848.2481081,0.00055878,15]
[312776600,1706207446126,-8848.2481081,0.00055879,15]
[312776601,1706207446137,-30968.8683784,0.0005588,15]
[312776602,1706207446150,-84238.5834453,0.0005588,13]
[312776603,1706207446159,-8848.2481081,0.00055885,15]
[312776604,1706207446169,-158.60850865,0.00055887,120]
[312776605,1706207446179,-381.68883309,0.00055888,4]
[312776606,1706207446188,-15743.08896824,0.00055888,7]
[312776607,1706207446197,-269.23366785,0.00055888,4]
[312776608,1706207446207,-4429.95769694,0.00055889,4]
[312776609,1706207446217,-500.0,0.00055889,120]
[312776611,1706207446227,-500.0,0.00055889,20]
[312776612,1706207446242,-500.0,0.00055889,120]
[312776613,1706207446251,-504.07952387,0.00055889,120]
[312776614,1706207446261,-500.0,0.00055889,2]
[312776615,1706207446272,-500.0,0.00055889,120]
[312776616,1706207446284,-527.20673216,0.00055889,120]
[312776617,1706207446295,-500.0,0.00055889,120]
[312776618,1706207446307,-500.0,0.00055889,120]
[312776619,1706207446317,-263.55162092,0.00055889,120]
[312776620,1706207446327,-500.0,0.00055889,120]
[312776621,1706207446337,-500.0,0.00055889,120]
[312776622,1706207446346,-424.143157,0.00055889,120]
[312776623,1706207446358,-500.0,0.00055889,120]
[312776624,1706207446367,-500.0,0.00055889,120]
[312776625,1706207446377,-500.0,0.00055889,120]
[312776626,1706207446386,-500.0,0.00055889,120]
[312776627,1706207446395,-548.87040574,0.00055889,120]
[312776628,1706207446405,-185.51,0.00055889,120]
[312776629,1706207446415,-500.0,0.00055889,120]
[312776630,1706207446425,-500.0,0.00055889,120]
[312776631,1706207446436,-500.0,0.00055889,120]
[312776632,1706207446446,-558.27,0.00055889,120]
[312776633,1706207446456,-33819.93627988,0.0005589,4]
[312776634,1706207446467,-1578.8145431,0.0005589,15]
[312776635,1706207446476,-1205.9494329,0.0005589,4]
[312776636,1706207446485,-155.0,0.0005589,4]
[312776637,1706207446494,-155.0,0.0005589,2]
[312776638,1706207446504,-2372.59232528,0.0005589,15]
[312776639,1706207446513,-500.0,0.0005589,10]
[312776640,1706207446522,-200.0,0.0005589,2]
[312776641,1706207446531,-160.00184019,0.0005589,2]
[312776642,1706207446541,-664.06710244,0.0005589,90]
[312776643,1706207446550,-684.54915076,0.0005589,4]
[312776644,1706207446559,-897.67,0.0005589,120]
[312776645,1706207446568,-500.0,0.0005589,120]
[312776646,1706207446577,-500.0,0.0005589,120]
[312776647,1706207446586,-698.11,0.0005589,120]
[312776648,1706207446594,-500.0,0.0005589,120]
[312776649,1706207446603,-500.0,0.0005589,2]
[312776650,1706207446612,-500.0,0.0005589,120]
[312776651,1706207446621,-500.0,0.0005589,120]
[312776652,1706207446631,-500.0,0.0005589,120]
[312776653,1706207446640,-353.40374287,0.0005589,120]
[312776654,1706207446649,-500.0,0.0005589,120]
[312776655,1706207446659,-508.74,0.0005589,2]
[312776656,1706207446668,-500.0,0.0005589,120]
[312776657,1706207446677,-500.0,0.0005589,120]
[312776658,1706207446686,-500.0,0.0005589,120]
[312776659,1706207446695,-500.0,0.0005589,120]
[312776660,1706207446704,-500.0,0.0005589,120]
[312776661,1706207446713,-500.0,0.0005589,120]
[312776662,1706207446722,-2584.07762,0.0005589,77]
[312776663,1706207446731,-500.0,0.0005589,120]
[312776664,1706207446741,-500.0,0.0005589,120]
[312776665,1706207446750,-525.52,0.0005589,120]
[312776666,1706207446759,-500.0,0.0005589,120]
[312776667,1706207446770,-500.0,0.0005589,120]
[312776668,1706207446780,-500.0,0.0005589,120]
[312776669,1706207446790,-581.08,0.0005589,120]
[312776670,1706207446800,-500.0,0.0005589,120]
[312776671,1706207446810,-500.0,0.0005589,120]
[312776672,1706207446820,-500.0,0.0005589,120]
[312776673,1706207446830,-500.0,0.0005589,120]
[312776674,1706207446841,-500.0,0.0005589,120]
[312776675,1706207446850,-500.0,0.0005589,120]
[312776676,1706207446859,-1843.31,0.0005589,5]
[312776677,1706207446869,-201.0,0.0005589,2]
[312776678,1706207446878,-154.18717499,0.00055891,2]
[312776679,1706207446888,-500.0,0.00055894,120]
[312776680,1706207446898,-353.30431023,0.00055894,120]
[312776681,1706207446907,-500.0,0.00055894,120]
[312776682,1706207446917,-1086.51,0.00055894,5]
[312776683,1706207446926,-1027.74,0.00055894,120]
[312776684,1706207446935,-500.0,0.00055894,120]
[312776685,1706207446944,-500.0,0.00055894,120]
[312776686,1706207446953,-500.0,0.00055894,120]
[312776687,1706207446963,-500.0,0.00055894,120]
[312776688,1706207446972,-500.0,0.00055895,120]
[312776689,1706207446982,-500.0,0.00055895,120]
[312776690,1706207446992,-500.0,0.00055895,120]
[312776691,1706207447001,-500.0,0.00055895,2]
[312776692,1706207447010,-600.0,0.00055895,120]
[312776693,1706207447022,-500.0,0.00055895,120]
[312776694,1706207447031,-500.0,0.00055895,120]
[312776695,1706207447041,-500.0,0.00055895,7]
[312776696,1706207447053,-500.0,0.00055895,120]
[312776697,1706207447062,-500.0,0.00055895,120]
[312776698,1706207447071,-500.0,0.00055895,120]
[312776699,1706207447080,-500.0,0.00055895,120]
[312776700,1706207447090,-150.0,0.00055895,120]
[312776701,1706207447099,-500.0,0.00055895,120]
[312776702,1706207447108,-500.0,0.00055895,120]
[312776703,1706207447117,-500.0,0.00055895,120]
[312776704,1706207447127,-500.0,0.00055895,120]
[312776705,1706207447136,-500.0,0.00055895,120]
[312776706,1706207447145,-407.65,0.00055895,120]
[312776707,1706207447154,-500.0,0.00055895,120]
[312776708,1706207447163,-500.0,0.00055895,120]
[312776709,1706207447172,-500.0,0.00055895,120]
[312776710,1706207447181,-500.0,0.00055895,120]
[312776711,1706207447190,-762.08,0.00055895,5]
[312776712,1706207447199,-274.42,0.00055895,120]
[312776713,1706207447208,-500.0,0.00055895,120]
[312776714,1706207447217,-500.0,0.00055895,120]
[312776715,1706207447226,-339.09333677,0.00055895,7]
[312776716,1706207447241,-500.0,0.00055895,120]
[312776717,1706207447251,-500.0,0.00055895,120]
[312776718,1706207447260,-400.0,0.00056,120]
[312776719,1706207447271,-300.0,0.00056,120]
[312776720,1706207447282,-1342.34081163,0.00056178,120]
[312776721,1706207447292,-521.14708942,0.0005626,30]
[312776722,1706207447301,-442.0,0.00056288,30]
[312776723,1706207447313,-290.0,0.00056288,30]
[312776724,1706207447323,-2097.04797138,0.00056427,15]
[312776725,1706207447425,-503.09566857,0.00056427,15]
[312776726,1706207447438,-1823.9804141,0.00056427,15]
[312776727,1706207447449,-4203.63838589,0.00056428,15]
[312776728,1706207447462,-4644.60972221,0.00056428,15]
[312776729,1706207447472,-8476.30807779,0.00056433,15]
[312776730,1706207447537,-500.0,0.00055895,120]
[312776731,1706207447546,-371.94003031,0.00056433,15]
[312776732,1706207447555,-267.12654119,0.00056437,25]
[312776733,1706207447566,-586.2126919,0.00056437,25]
[312776734,1706207447577,-1468.66076691,0.00056437,25]
[312776735,1706207447586,-500.0,0.00056437,120]
[312776736,1706207447595,-500.0,0.00056437,20]
[312776737,1706207447604,-500.0,0.00056437,120]
[312776738,1706207447613,-500.0,0.00056437,2]
[312776739,1706207447622,-500.0,0.00056437,120]
[312776740,1706207447632,-171.63332958,0.00056437,120]
[312776741,1706207447641,-500.0,0.00056437,120]
[312776742,1706207447651,-500.0,0.00056437,120]
[312776743,1706207447660,-500.0,0.00056437,120]
[312776744,1706207447670,-500.0,0.00056437,120]
[312776745,1706207447678,-500.0,0.00056437,120]
[312776746,1706207447687,-500.0,0.00056437,120]
[312776747,1706207447696,-558.27,0.00056437,120]
[312776748,1706207447705,-897.67,0.00056438,120]
[312776749,1706207447714,-500.0,0.00056438,120]
[312776750,1706207447723,-500.0,0.00056438,120]
[312776751,1706207447732,-698.11,0.00056438,120]
[312776752,1706207447741,-500.0,0.00056438,120]
[312776753,1706207447751,-500.0,0.00056438,2]
[312776754,1706207447760,-500.0,0.00056438,120]
[312776755,1706207447769,-500.0,0.00056438,120]
[312776756,1706207447778,-500.0,0.00056438,120]
[312776757,1706207447788,-500.0,0.00056438,120]
[312776758,1706207447798,-508.74,0.00056438,2]
[312776759,1706207447807,-500.0,0.00056438,120]
[312776760,1706207447816,-500.0,0.00056438,120]
[312776761,1706207447825,-500.0,0.00056438,120]
[312776762,1706207447834,-500.0,0.00056438,120]
[312776763,1706207447844,-500.0,0.00056438,120]
[312776764,1706207447853,-500.0,0.00056438,120]
[312776765,1706207447862,-500.0,0.00056438,120]
[312776766,1706207447872,-500.0,0.00056438,120]
[312776767,1706207447882,-525.52,0.00056438,120]
[312776768,1706207447891,-500.0,0.00056438,120]
[312776769,1706207447900,-500.0,0.00056438,120]
[312776770,1706207447909,-500.0,0.00056438,120]
[312776771,1706207447918,-581.08,0.00056438,120]
[312776772,1706207447927,-500.0,0.00056438,120]
[312776773,1706207447937,-387.82410948,0.00056438,120]
[312776774,1706207447946,-500.0,0.00056438,120]
[312776775,1706207447955,-500.0,0.00056438,120]
[312776776,1706207447965,-500.0,0.00056438,120]
[312776777,1706207447975,-500.0,0.00056438,120]
[312776778,1706207447984,-500.0,0.00056442,120]